Cogmind - Beta 13 @@@ ROGUE MODE // 2024.04.19 @ 21:48:03 Player: Morphaana Result: Destroyed by Y-45 Defender with Heavy Assault Rifle Performance ------------- Evolutions (2) 1000 Regions Visited (7) 1400 Robots Destroyed (93) 465 Value Destroyed (2339) 2339 Prototype IDs (25) 500 Alien Tech Used (0) 0 Bonus (538) 538 TOTAL SCORE: 6242 Bonus ------- High Alert Combat Kills 238 Aligned with FarCom 300 Cogmind --------- Core Integrity 0/550 Matter 248/300 Energy 100/100 System Corruption 0% Temperature Cool (0) Movement Core (700) Ox13 Location -8/Materials Parts ------- > --- POWER (1) -------- (None) > --- PROPULSION (3) --- (None) > --- UTILITY (5) ------ High-capacity Storage Unit Visual Processing Unit > --- WEAPON (2) ------- Hammer > --- INVENTORY (20) --- Light Nuclear Core Improved Flight Unit Improved Flight Unit Improved Flight Unit Improved Flight Unit Improved Flight Unit Improved Flight Unit Improved Flight Unit Improved Flight Unit Improved Heat Sink Structural Scanner Improved Light Armor Plating Hacking Suite Rocket Launcher Rocket Launcher Peak State ------------ > --- POWER ------------ Light Nuclear Core > --- PROPULSION ------- Light Treads Improved Treads Improved Treads > --- UTILITY ---------- Improved Heat Sink High-capacity Storage Unit Visual Processing Unit > --- WEAPON ----------- Heavy Assault Rifle Improved Assault Rifle > --- INVENTORY -------- Improved Ion Engine Light Nuclear Core Light Treads Improved Flight Unit Improved Flight Unit Improved Flight Unit Improved Flight Unit Improved Flight Unit Improved Flight Unit Improved Flight Unit Improved Flight Unit Improved Heat Sink Structural Scanner Hacking Suite Heavy Assault Rifle Rocket Launcher Rocket Launcher Hammer [Rating: 23] Favorites ----------- Power Improved Ion Engine Engine Improved Ion Engine Power Core Light Nuclear Core Propulsion Improved Treads Treads Improved Treads Wheel Wheel Flight Unit Improved Flight Unit Utility High-capacity Storage Unit Device Improved Heat Sink Storage High-capacity Storage Unit Processor Visual Processing Unit Protection Light Armor Plating Weapon Heavy Assault Rifle Energy Gun Small Laser Ballistic Gun Heavy Assault Rifle Launcher Rocket Launcher Impact Weapon Hammer Slashing Weapon Katana Build | -11 -10 -10 -9 -9 -9 -8 -8 ------- Run | Yrd Mat Min Mat Min Exi Min Mat Slots Evolved 4 | . . . 2 . . . 2 Power . | . . . . . . . . Propulsion 1 | . . . 1 . . . . Utility 3 | . . . 1 . . . 2 Weapon . | . . . . . . . . Parts Attached 64 | 6 10 2 34 . . 4 8 Power 8 | 1 1 2 2 . . 1 1 Engine 6 | 1 1 1 2 . . . 1 Core 2 | . . 1 . . . 1 . Reactor . | . . . . . . . . Propulsion 22 | 2 2 . 13 . . 2 3 Treads 20 | 2 2 . 12 . . 2 2 Leg . | . . . . . . . . Wheel 1 | . . . . . . . 1 Hover . | . . . . . . . . Flight 1 | . . . 1 . . . . Utility 9 | 1 1 . 6 . . . 1 Device 1 | . . . . . . . 1 Storage 2 | 1 1 . . . . . . Processor 1 | . . . 1 . . . . Hackware . | . . . . . . . . Protection 5 | . . . 5 . . . . Artifact . | . . . . . . . . Weapon 25 | 2 6 . 13 . . 1 3 Energy Gun 1 | 1 . . . . . . . Energy Cannon . | . . . . . . . . Ballistic Gun 16 | 1 4 . 9 . . 1 1 Ballistic Cannon . | . . . . . . . . Launcher 6 | . 2 . 4 . . . . Special Weapon . | . . . . . . . . Impact Weapon 1 | . . . . . . . 1 Slashing Weapon 1 | . . . . . . . 1 Piercing Weapon . | . . . . . . . . Special Melee Weapon . | . . . . . . . . Unidentified Prototypes 2 | . . . 2 . . . . Parts Lost 23 | . 1 1 5 1 . 4 11 Power 5 | . 1 1 . . . 1 2 Propulsion 7 | . . . . . . 2 5 Utility 5 | . . . 3 1 . . 1 Weapon 6 | . . . 2 . . 1 3 Highest Loss Streak 11 | . 1 1 3 1 . 4 11 To Critical Strikes . | . . . . . . . . Average Slot Usage (%) 88 | . 84 84 93 88 88 85 59 Engine 10 | . 13 11 11 11 11 6 1 Treads 30 | . 28 28 33 33 33 30 15 Storage 11 | . 14 14 11 11 11 11 9 Processor 5 | . . . 5 11 11 11 9 Protection 5 | . . . 9 . . . . Ballistic Gun 22 | . 23 28 21 22 22 22 11 Naked Turns . | . . . . . . . . Heaviest Build 60 | 11 49 51 60 53 53 53 52 Greatest Support 69 | 40 40 40 69 69 69 69 66 Greatest Overweight (x) 16 | . 1 1 . . . 2 16 Average Overweight (x) . | . . 1 . . . . 1 Largest Inventory Capacity 20 | 8 20 20 20 20 20 20 20 Average Capacity 18 | 7 12 20 20 20 20 20 20 Most Carried 20 | 1 11 12 20 20 20 20 19 Average Carried 15 | . 7 11 18 20 20 19 17 Final Capacity 20 | 8 20 20 20 20 20 20 20 Final Carried 20 | . 11 12 20 20 20 18 15 Class Distribution -------------------- 91% | Mutant 8% | Scavenger-Mutant Dominant Class ---------------- Mutant | -10/Materials Mutant | -10/Mines Mutant | -9/Materials Mutant | -9/Mines Mutant | -9/Exiles Mutant | -8/Mines Mutant | -8/Materials Resources | -11 -10 -10 -9 -9 -9 -8 -8 ----------- Run | Yrd Mat Min Mat Min Exi Min Mat Matter Collected 2272 | 212 343 233 1238 57 . 132 57 Remotely . | . . . . . . . . Salvage Created 3230 | . 530 430 1907 47 . 147 169 Parts 228 | . 54 19 139 6 . 3 7 Haulers Intercepted 8 | . 2 . 6 . . . . Recyclers Shooed 4 | . 2 1 1 . . . . Parts Field Recycled . | . . . . . . . . Retrieved Matter . | . . . . . . . . Parts Self-Destructed . | . . . . . . . . Prevented . | . . . . . . . . Kills | -11 -10 -10 -9 -9 -9 -8 -8 ------- Run | Yrd Mat Min Mat Min Exi Min Mat Combat Hostiles Destroyed 64 | . 14 8 33 3 . 3 3 Melee 1 | . . . . . . . 1 Guns 55 | . 8 8 31 3 . 3 2 AOE 8 | . 6 . 2 . . . . Classes Destroyed 11 | . 7 1 2 . . . 1 Worker 5 | . 3 1 1 . . . . Builder 5 | . 2 . 3 . . . . Tunneler 1 | . . 1 . . . . . Hauler 8 | . 2 . 6 . . . . Operator 2 | . 1 . 1 . . . . Watcher 8 | . 3 . 5 . . . . Swarmer 15 | . 9 . 3 3 . . . Grunt 36 | . 5 8 19 . . 2 2 Brawler 2 | . . . 1 . . 1 . Duelist 1 | . . . . . . . 1 Sentry 10 | . . . 10 . . . . Best Kill Streak 10 | . 10 3 5 3 . 2 2 Combat Bots Only 3 | . 3 3 3 3 . 2 2 Max Kills in Single Turn 3 | . 2 1 3 1 . 1 1 Gunslinging 1 | . . . 1 . . . . Exploded 2 | . 2 . 2 . . . . Melee 1 | . . . . . . . 1 Uniques/NPCs Destroyed . | . . . . . . . . Combat | -11 -10 -10 -9 -9 -9 -8 -8 -------- Run | Yrd Mat Min Mat Min Exi Min Mat Hostile Shots Fired 491 | . 74 46 166 29 . 38 138 Missed 137 | . 25 10 45 8 . 11 38 Damage Taken 4835 | . 478 490 1630 171 . 433 1633 Core 1102 | . 56 113 254 40 . 84 555 Absorbed by Shields . | . . . . . . . . Core Remaining (%) 45 | 100 . 32 . . . 5 . Volleys Fired 259 | . 53 34 132 8 . 17 15 Largest 2 | . 2 2 2 2 . 2 2 Hottest 60 | . 60 46 56 46 . 46 46 Shots Fired 499 | . 99 68 257 16 . 33 26 Gun 485 | . 93 68 249 16 . 33 26 Cannon . | . . . . . . . . Launcher 14 | . 6 . 8 . . . . Special . | . . . . . . . . Kinetic 483 | . 91 68 249 16 . 33 26 Thermal 2 | . 2 . . . . . . Explosive 14 | . 6 . 8 . . . . Electromagnetic . | . . . . . . . . Robot Hit Streak 25 | . 15 9 25 7 . 9 11 Robot Miss Streak 9 | . 3 3 9 3 . 1 1 Penetration Max . | . . . . . . . . Secondary Targets 6 | . . 2 1 1 . 1 1 Max Gunslinging Chain 1 | . . 1 1 1 . 1 1 Shots Hit Robots 351 | . 62 50 174 10 . 28 27 Core Hits 140 | . 32 19 71 3 . 9 6 Critical Kills . | . . . . . . . . Critical Parts Destroyed . | . . . . . . . . Critical Strikes . | . . . . . . . . Melee Attacks 7 | . . . . . . . 7 Impact . | . . . . . . . . Slashing 7 | . . . . . . . 7 Piercing . | . . . . . . . . Sneak Attacks . | . . . . . . . . Combat Hostiles . | . . . . . . . . Follow-up Attacks . | . . . . . . . . Damage Inflicted 6108 | . 1290 746 3004 125 . 433 510 Guns 5148 | . 797 743 2748 125 . 413 322 Cannons . | . . . . . . . . Explosions 741 | . 493 . 248 . . . . Melee 188 | . . . . . . . 188 Ramming 31 | . . 3 8 . . 20 . Kinetic 5136 | . 785 743 2748 125 . 413 322 Thermal 12 | . 12 . . . . . . Explosive 741 | . 493 . 248 . . . . Electromagnetic . | . . . . . . . . Impact . | . . . . . . . . Slashing 188 | . . . . . . . 188 Piercing . | . . . . . . . . Highest Corruption 4 | . . . 4 4 4 4 . Average Corruption 3 | . . . 2 4 4 4 . Corruption Purged . | . . . . . . . . Corruption Blocked . | . . . . . . . . Effects 67 | . . . 44 4 8 11 . Message Errors 16 | . . . 7 1 3 5 . Matter Fused 16 | . . . 11 3 2 . . Heat Flow Errors 9 | . . . 9 . . . . Energy Discharges 7 | . . . 6 . 1 . . Data Loss (minor) 4 | . . . 2 . . 2 . Data Loss (major) 4 | . . . 3 . 1 . . Misfires 4 | . . . 3 . . 1 . Alerts 5 | . . . 2 . 1 2 . Weapon Failures 2 | . . . 1 . . 1 . Overload Shots . | . . . . . . . . Overflow Damage 36 | . 36 . . . . . . Projectiles . | . . . . . . . . Explosions 36 | . 36 . . . . . . Melee . | . . . . . . . . Knockbacks . | . . . . . . . . Impact . | . . . . . . . . Kinetic . | . . . . . . . . Secondary . | . . . . . . . . Self-Inflicted Damage 16 | . . . 16 . . . . Shots 2 | . . . 2 . . . . Rammed 5 | . . 1 2 . . 2 . Targets Rammed 5 | . . 1 2 . . 2 . Kicked . | . . . . . . . . Crushed . | . . . . . . . . Highest Temperature 277 | . 6 41 277 . . 32 13 Average Temperature 62 | . 6 15 77 . . 13 6 Received Heat Transfer 2169 | . 198 306 684 . . 279 702 Effects 1 | . . . 1 . . . . Interference 1 | . . . 1 . . . . Siege Activations . | . . . . . . . . Robots Corrupted . | . . . . . . . . Combat Hostiles . | . . . . . . . . Parts Fried . | . . . . . . . . Impact Corruptions . | . . . . . . . . Robots Melted . | . . . . . . . . Combat Hostiles . | . . . . . . . . Parts Melted . | . . . . . . . . Heat Transferred 25 | . 25 . . . . . . Parts Sabotaged . | . . . . . . . . Parts Stolen . | . . . . . . . . Parts Stripped . | . . . . . . . . Power Chain Reactions . | . . . . . . . . Alert | -11 -10 -10 -9 -9 -9 -8 -8 ------- Run | Yrd Mat Min Mat Min Exi Min Mat Peak Influence 770 | . 412 281 770 330 . 50 35 Initial 270 | . . 66 109 270 . . . Average 355 | . 181 234 539 324 . 14 12 Maximum Alert Level 3 | . 2 1 3 1 . . . Low Security (%) 29 | 100 44 21 5 . . 100 100 Level 1 21 | . 49 78 5 100 . . . Level 2 41 | . 5 . 74 . . . . Level 3 8 | . . . 15 . . . . Level 4 . | . . . . . . . . Level 5 . | . . . . . . . . High Security . | . . . . . . . . Max Security . | . . . . . . . . Squads Dispatched 6 | . 2 . 3 . . . 1 Investigation 3 | . 1 . 2 . . . . Extermination . | . . . . . . . . Reinforcement 3 | . 1 . 1 . . . 1 Assault . | . . . . . . . . Garrison . | . . . . . . . . Intercept . | . . . . . . . . Searches Triggered . | . . . . . . . . Construction Impeded . | . . . . . . . . Haulers Reinforced . | . . . . . . . . Active Scanning Responses . | . . . . . . . . Cargo Convoy Interrupts . | . . . . . . . . Stealth | -11 -10 -10 -9 -9 -9 -8 -8 --------- Run | Yrd Mat Min Mat Min Exi Min Mat Distress Signals 4 | . 1 . 3 . . . . Communications Jammed . | . . . . . . . . Distress Signals . | . . . . . . . . Times Spotted 95 | . 26 9 46 4 . 3 7 Peak Tracking Total 5 | . 5 4 4 4 . 3 4 Tactical Retreats 5 | . 2 1 2 . . . . Traps | -11 -10 -10 -9 -9 -9 -8 -8 ------- Run | Yrd Mat Min Mat Min Exi Min Mat Traps Triggered 3 | . 1 . 2 . . . . Indirectly . | . . . . . . . . Trap Hack Attempts . | . . . . . . . . Triggered . | . . . . . . . . Disarmed . | . . . . . . . . Reprogrammed . | . . . . . . . . Reused . | . . . . . . . . Traps Extracted . | . . . . . . . . Installed . | . . . . . . . . Triggered . | . . . . . . . . Machines | -11 -10 -10 -9 -9 -9 -8 -8 ---------- Run | Yrd Mat Min Mat Min Exi Min Mat Machines Disabled 4 | . 1 . 3 . . . . Max in Single Turn 1 | . 1 . 1 . . . . Machines Repaired . | . . . . . . . . Machines Dismantled . | . . . . . . . . Machines Sabotaged . | . . . . . . . . Overloaded Fab Kills . | . . . . . . . . Hacking | -11 -10 -10 -9 -9 -9 -8 -8 --------- Run | Yrd Mat Min Mat Min Exi Min Mat Machines Accessed 18 | . 6 . 9 . 1 . 2 Terminals 11 | . 4 . 5 . . . 2 Fabricators . | . . . . . . . . Repair Stations . | . . . . . . . . Recycling Units 4 | . 2 . 2 . . . . Scanalyzers 2 | . . . 2 . . . . Garrison Access . | . . . . . . . . Total Hacks 43 | . 14 . 22 . 1 . 6 Successful 21 | . 5 . 13 . 1 . 2 Failed 22 | . 9 . 9 . . . 4 Catastrophic 7 | . 2 . 4 . . . 1 Database Lockouts . | . . . . . . . . Manual 24 | . 6 . 12 . 1 . 5 Terminals 29 | . 8 . 15 . . . 6 Fabricators . | . . . . . . . . Repair Stations . | . . . . . . . . Recycling Units 8 | . 6 . 2 . . . . Scanalyzers 5 | . . . 5 . . . . Garrison Access . | . . . . . . . . Terminal Hacks 8 | . 1 . 5 . 1 . 1 Robot Analysis 2 | . . . 2 . . . . Branch Access Points 1 | . 1 . . . . . . Locate Traps 2 | . . . 1 . . . 1 Dispatch Records 1 | . . . 1 . . . . Hauler Manifests 1 | . . . 1 . . . . Derelict Proto ID Bank 1 | . . . . . 1 . . Fabricator Hacks . | . . . . . . . . Repair Station Hacks . | . . . . . . . . Recycling Unit Hacks 6 | . 4 . 2 . . . . Process 1 | . 1 . . . . . . Report Inventory 4 | . 2 . 2 . . . . Retrieve Matter 1 | . 1 . . . . . . Scanalyzer 4 | . . . 4 . . . . Insert Component 2 | . . . 2 . . . . Analyze 2 | . . . 2 . . . . Garrison Access Hacks . | . . . . . . . . Unauthorized Hacks 3 | . . . 2 . . . 1 Terminals 3 | . . . 2 . . . 1 Assimilate 2 | . . . 1 . . . 1 Botnet 1 | . . . 1 . . . . Fabricators . | . . . . . . . . Repair Stations . | . . . . . . . . Recycling Units . | . . . . . . . . Scanalyzers . | . . . . . . . . Garrison Access . | . . . . . . . . Data Cores Recovered . | . . . . . . . . Used . | . . . . . . . . Hacking Detections 13 | . 4 . 7 . . . 2 Full Trace Events 3 | . . . 3 . . . . Feedback Events 1 | . . . 1 . . . . Corruption 1 | . . . 1 . . . . Feedback Blocked . | . . . . . . . . Robot Schematics Acquired . | . . . . . . . . Robots Built . | . . . . . . . . Authchips . | . . . . . . . . Time . | . . . . . . . . Total Robot Build Rating . | . . . . . . . . Part Schematics Acquired 2 | . . . 2 . . . . Parts Built . | . . . . . . . . Authchips . | . . . . . . . . Time . | . . . . . . . . Total Part Build Rating . | . . . . . . . . Parts Repaired . | . . . . . . . . Time . | . . . . . . . . Parts Recycled . | . . . . . . . . Recycled Matter 220 | . 220 . . . . . . Retrieved Matter 352 | . 352 . . . . . . Retrieved Components . | . . . . . . . . Parts Scanalyzed 2 | . . . 2 . . . . Part Schematics Acquired 2 | . . . 2 . . . . Parts Damaged . | . . . . . . . . Bothacking | -11 -10 -10 -9 -9 -9 -8 -8 ------------ Run | Yrd Mat Min Mat Min Exi Min Mat Used RIF Installer . | . . . . . . . . Robots Hacked . | . . . . . . . . Non-combat . | . . . . . . . . Combat . | . . . . . . . . Robot Hacks Applied . | . . . . . . . . Relay Couplers Released . | . . . . . . . . Fabnet Peak Effective % . | . . . . . . . . Robots Rewired . | . . . . . . . . Allies Hacked . | . . . . . . . . Hacks Repelled . | . . . . . . . . Allies | -11 -10 -10 -9 -9 -9 -8 -8 -------- Run | Yrd Mat Min Mat Min Exi Min Mat Total Allies 1 | . . . . . . . 1 Largest Group 1 | . . . . . . . 1 Highest-Rated Group 10 | . . . . . . . 10 Highest-Rated Ally 10 | . . . . . . . 10 Total Orders . | . . . . . . . . Ally Attacks . | . . . . . . . . Total Damage . | . . . . . . . . Kills . | . . . . . . . . Allies Corrupted . | . . . . . . . . Allies Melted . | . . . . . . . . Intel | -11 -10 -10 -9 -9 -9 -8 -8 ------- Run | Yrd Mat Min Mat Min Exi Min Mat Robot Analysis Total 2 | . . . 2 . . . . Derelict Logs Recovered 1 | . . 1 . . . . . Drone Launches . | . . . . . . . . Drone Recoveries . | . . . . . . . . Exploration | -11 -10 -10 -9 -9 -9 -8 -8 ------------- Run | Yrd Mat Min Mat Min Exi Min Mat Turns Passed 6120 | 191 1238 319 3125 186 341 496 224 Spaces Moved 2990 | 112 558 87 1576 102 214 268 73 Core 7 | 1 . . . . . . 6 Treads 2979 | 111 558 87 1576 102 214 268 63 Legs . | . . . . . . . . Wheels 4 | . . . . . . . 4 Hover . | . . . . . . . . Flight . | . . . . . . . . Fastest Speed 50 | 50 160 240 160 160 160 160 155 Average Speed 168 | 159 184 240 160 160 160 163 213 Slowest Speed 850 | 160 240 240 160 160 160 320 850 Overloaded Moves . | . . . . . . . . Propulsion Burnouts . | . . . . . . . . Robots Hopped . | . . . . . . . . Cave-ins Triggered . | . . . . . . . . Exploration Rate (%) 50 | 8 94 27 98 27 63 78 8 Regions Visited 7 Branch Regions 4 Pre-discovered Areas . | . . . . . . . . Known Exits Taken 3 | . 1 . 1 . . 1 . Unknown Exits Taken 4 | 1 . 1 . 1 1 . . Scrap Searched 2 | . . 1 . . . 1 . Spaces Dug . | . . . . . . . . Terrain Destroyed 115 | . 44 . 71 . . . . Melee . | . . . . . . . . Projectile . | . . . . . . . . AOE 115 | . 44 . 71 . . . . Terrain Rammed . | . . . . . . . . Walls Destroyed . | . . . . . . . . Machines Disabled . | . . . . . . . . Actions | -11 -10 -10 -9 -9 -9 -8 -8 --------- Run | Yrd Mat Min Mat Min Exi Min Mat Total 3562 | 123 668 128 1925 109 213 290 106 Wait 177 | 5 23 4 145 . . . . Move 2983 | 111 557 86 1575 101 213 267 73 Hop . | . . . . . . . . Pick Up 37 | 1 16 1 16 . . . 3 Fast Attach 19 | 5 3 . 7 . . 2 2 Attach 14 | 1 . 1 4 . . 2 6 Detach 2 | . . . 2 . . . . Swap 31 | . 7 1 23 . . . . Drop 28 | . 9 . 19 . . . . Fire 259 | . 53 34 132 8 . 17 15 Melee 7 | . . . . . . . 7 Ram . | . . . . . . . . Kick . | . . . . . . . . Crush 5 | . . 1 2 . . 2 . Escape Stasis . | . . . . . . . . Rewire . | . . . . . . . . Trap . | . . . . . . . . Miscellaneous . | . . . . . . . . Route ------- -11/Scrapyard -10/Materials (discovered 4 exits: *Mat x2 / *Min x2) -10/Mines (discovered 2 exits: *Mat x2) -9/Materials (discovered 5 exits: *Mat x3 / *Min x2) -9/Mines -9/Exiles (discovered 2 exits: [*Min x2]) -8/Mines -8/Materials History --------- Turn | Location | Event 7 | -11/Scrapyard | Discovered new exit (range 16) 192 | -11/Scrapyard | Entered Materials 307 | -10/Materials | Build established: Mutant 316 | -10/Materials | Discovered new exit (range 14) 526 | -10/Materials | Discovered new exit (range 16) 834 | -10/Materials | Discovered new exit (range 14) 1092 | -10/Materials | Discovered new exit (range 16) 1133 | -10/Materials | Identified exit to Mines 1430 | -10/Materials | Entered Mines 1510 | -10/Mines | Core integrity fell below 50% 1547 | -10/Mines | Met a Derelict bent on vengeance 1681 | -10/Mines | Discovered new exit (range 7) 1688 | -10/Mines | Discovered new exit (range 10) 1695 | -10/Mines | Learned 2 Materials zone layouts 1749 | -10/Mines | Entered Materials 1749 | -9/Materials | Evolved 2 slots: Propulsion x1, Utility x1 1750 | -9/Materials | Identified exit to Mines 1750 | -9/Materials | Identified exit to Materials 1776 | -9/Materials | Discovered exit to Mines (range 16) 2111 | -9/Materials | Build established: Scavenger-Mutant 2286 | -9/Materials | Lost 3 parts (2u1w) 2689 | -9/Materials | Build established: Mutant 3037 | -9/Materials | Discovered exit to Materials (range 16) 3646 | -9/Materials | Core integrity fell below 50% 4702 | -9/Materials | Discovered exit to Materials (range 17) 4874 | -9/Materials | Entered Mines 5054 | -9/Mines | Deemed a non-threat by the Exiles lab entrance 5054 | -9/Mines | Discovered new exit (range 5) 5060 | -9/Mines | Entered Exiles 5088 | -9/Exiles | Discovered new exit (range 17) 5105 | -9/Exiles | Met 8R-AWN 5132 | -9/Exiles | Met EX-HEX 5185 | -9/Exiles | Met EX-BIN 5204 | -9/Exiles | Aligned with FarCom system 5206 | -9/Exiles | Given EX-Vault access code 5243 | -9/Exiles | Opened EX-Vault 5278 | -9/Exiles | Warned to stay clear of 0b10 Research branches 5324 | -9/Exiles | Met EX-DEC 5377 | -9/Exiles | Discovered new exit (range 17) 5401 | -9/Exiles | Entered Mines 5649 | -8/Mines | Core integrity fell below 20% 5704 | -8/Mines | Lost 4 parts (1p2n1w) 5889 | -8/Mines | Discovered exit to Materials (range 5) 5897 | -8/Mines | Entered Materials 5897 | -8/Materials | Evolved 2 slots: Utility x2 6076 | -8/Materials | Core integrity fell below 50% 6107 | -8/Materials | Core integrity fell below 20% 6121 | -8/Materials | Destroyed by Y-45 Defender with Heavy Assault Rifle Last Messages --------------- K-01 Serf collects debris. Acquired Imp. Treads. K-01 Serf collects debris. K-01 Serf destroyed. K-01 Serf collects debris. Imp. Treads destroyed. K-01 Serf collects debris. Acquired Katana. K-01 Serf collects debris. ALERT: Hostiles spotted, dispatching reinforcements to Terminal M009. K-01 Serf collects debris. Lgt. Treads destroyed. Acquired Wheel. Critical hit (Burn: +37). Acquired 57 matter. Wheel destroyed. G-47 Trooper destroyed. Imp. Ion Engine destroyed. Katana destroyed. Map ----- +----------------------------------------------------+ | ???????????????????????????????????????????????? | | ???????????????????????????????????????????????? | | ???????????????????????????????????????????????? | | ???????????????????????????????????????????????? | | ???????????????????????????????????????????????? | | ????????????????????###############????????????? | | ????????????????????# #????????????? | | ????????????????????# """ """ """ #????????????? | | ????????????????????# """ """ """ #????????????? | | ????????????????????# """ """ """ #????????????? | | ????????????????????# #????????????? | | ????????????????????# ] #????????????? | | ??????????????????#########+#######????????????? | | ??????????????????# T #?????????????? | | ?????????########## #?????????????? | | ?????????# # #?????????????? | | ?????????# ! # #####?????????????? | | ?????????# # ! #?????????????????? | | ?????????# # ##????????????????? | | ?????????# + "#????????????????? | | ?????????# # / T#????????????????? | | ?????????# # a """ "#????????????????? | | ?????????# # """ ##????????????????? | | ?????????# # """ #?????????????????? | | ?????????########## = !%[ #?????????????????? | | ??????????????????# %[ @Y #?????????????????? | | ??????????????????# ^ =Y[ #?????????????????? | | ??????????????????# ^ """% #?????????????????? | | ??????????????????# """ #?????????????????? | | ??????????????????# """ #?????????????????? | | ??????????????????#%^ """ #?????????????????? | | ??????????????????# #?????????????????? | | ??????????????????# #?????????????????? | | ??????????????????# ^ #?????????????????? | | ??????????????????# #?????????????????? | | ??????????????????# #?????????????????? | | ??????????????????# ?????????????????? | | ??????????????????# ?????????????????? | | ??????????????????# ########?????????????????? | | ??????????????????# ?????????????????????????? | | ??????????????????# ?????????????????????????? | | ??????????????????? ?????????????????????????? | | ????????????????????? ?????????????????????????? | | ???????????????????????????????????????????????? | | ???????????????????????????????????????????????? | | ???????????????????????????????????????????????? | | ???????????????????????????????????????????????? | | ???????????????????????????????????????????????? | | ???????????????????????????????????????????????? | | ???????????????????????????????????????????????? | +----------------------------------------------------+ Best States ------------- Heat Dissipation 45 Energy Generation 14 Energy Capacity 265 Matter Stores 300 Matter Capacity 300 Sight Range 18 Terrain Scan Density 10 Armor Coverage 300 Evasion (%) 40 Recoil Reduction 3 Item Schematics ----------------- Hacking Suite | -9/Materials | Scanalyzed Imp. Flight Unit | -9/Materials | Scanalyzed Robot Schematics ------------------ None Fabricated ------------ Nothing Alien Tech Used ----------------- None Achievements -------------- None Challenges ------------ None Game ------ Seed GrenadeChargeArachnoskeleton Manual? 0 Play Time 00:47:27 Cumulative 8.4 hours Start 2024.04.19 @ 21:01:47 End 2024.04.19 @ 21:48:03 Sessions 1 Manual Loads 0 Difficulty Rogue Special Mode None Game No. 6 Rogue 6 Adventurer 0 Explorer 0 Win Type - Total 0 Types 0/0/0/0/0/0/0/0/0 Lore% 1 Gallery% 10 Achievement% 14 Wizard Run 0 Options --------- Layout 1 ASCII 0 Keyboard 0 Movement Mouse Keybinds 0 Fullscreen 2 Font 24/Smallcaps Map View 50x35 Zoom Use 0% Tactical HUD 0 Map Filters NONE Filters NONE Steam X RUN: 2d6e6032-9cf9-4a52-82dd-14808c424e8b